[Event "*** Titled Tuesday Blitz"]
[Site "Chess.com"]
[Date "2018.09.04"]
[Round "7"]
[White "Korchmar_Vasiliy"]
[Black "pedromartinez91"]
[Result "1-0"]
[WhiteElo "2645"]
[BlackElo "2392"]
[TimeControl "180+2"]
[EndTime "15:09:34 PDT"]
[Termination "Korchmar_Vasiliy won by resignation"]

1. d4 {[%clk 0:03:01]} 1... Nf6 {[%clk 0:02:50.3]} 2. Nf3 {[%clk 0:03:02]} 2...
c5 {[%clk 0:02:48.1]} 3. d5 {[%clk 0:03:02.1]} 3... e6 {[%clk 0:02:48.5]} 4. Nc3
{[%clk 0:02:59.8]} 4... exd5 {[%clk 0:02:45.2]} 5. Nxd5 {[%clk 0:03:01.7]} 5...
Nxd5 {[%clk 0:02:41.9]} 6. Qxd5 {[%clk 0:03:03.5]} 6... Nc6 {[%clk 0:02:42.6]}
7. Bg5 {[%clk 0:02:53.1]} 7... Be7 {[%clk 0:02:39.1]} 8. a3 {[%clk 0:02:31.8]}
8... d6 {[%clk 0:02:11.9]} 9. Bxe7 {[%clk 0:02:26.6]} 9... Nxe7 {[%clk 0:02:11]}
10. Qh5 {[%clk 0:02:12.4]} 10... Bf5 {[%clk 0:02:01]} 11. O-O-O {[%clk
0:02:11.7]} 11... O-O {[%clk 0:01:47.8]} 12. e3 {[%clk 0:02:09.1]} 12... Bg6
{[%clk 0:01:21.7]} 13. Qh4 {[%clk 0:02:09.2]} 13... b5 {[%clk 0:01:02.6]} 14.
Bxb5 {[%clk 0:01:53.1]} 14... Rb8 {[%clk 0:00:58.8]} 15. Bd3 {[%clk 0:01:49.1]}
15... Qb6 {[%clk 0:00:57.6]} 16. Qxe7 {[%clk 0:01:39.3]} 16... Qxb2+ {[%clk
0:00:57.8]} 17. Kd2 {[%clk 0:01:40.3]} 17... Bxd3 {[%clk 0:00:31.8]} 18. Kxd3
{[%clk 0:01:42.2]} 18... c4+ {[%clk 0:00:30.6]} 19. Ke2 {[%clk 0:01:33.7]} 19...
c3 {[%clk 0:00:30.8]} 20. Nd4 {[%clk 0:01:29.4]} 20... Qxa3 {[%clk 0:00:27.4]}
21. Ra1 {[%clk 0:01:28.3]} 21... Qc5 {[%clk 0:00:28.2]} 22. Rhd1 {[%clk
0:01:19.4]} 22... Qh5+ {[%clk 0:00:25.4]} 23. Kf1 {[%clk 0:01:03.2]} 23... Qxh2
{[%clk 0:00:25.6]} 24. Nf3 {[%clk 0:01:04.6]} 24... Qh1+ {[%clk 0:00:22.7]} 25.
Ng1 {[%clk 0:01:05.7]} 25... Qh5 {[%clk 0:00:20.7]} 26. Qxd6 {[%clk 0:00:52.3]}
26... h6 {[%clk 0:00:21.5]} 27. Qd3 {[%clk 0:00:43.9]} 27... Rfc8 {[%clk
0:00:18.5]} 28. Rxa7 {[%clk 0:00:44.3]} 28... Qh4 {[%clk 0:00:16.5]} 29. Qd5
{[%clk 0:00:31.6]} 29... Rf8 {[%clk 0:00:10.7]} 30. Qd4 {[%clk 0:00:21.5]} 30...
Qh1 {[%clk 0:00:09.1]} 31. Qxc3 {[%clk 0:00:20.8]} 31... Qh5 {[%clk 0:00:09]}
32. Qd4 {[%clk 0:00:17.8]} 32... Qg5 {[%clk 0:00:08.1]} 33. Rd7 {[%clk
0:00:16.3]} 33... Rbc8 {[%clk 0:00:08]} 34. c4 {[%clk 0:00:16.6]} 34... Qh5
{[%clk 0:00:07.5]} 35. Rd5 {[%clk 0:00:16.1]} 35... Qg6 {[%clk 0:00:06.9]} 36.
Nf3 {[%clk 0:00:16.7]} 36... Qc2 {[%clk 0:00:07.9]} 37. c5 {[%clk 0:00:13.8]}
37... Qa4 {[%clk 0:00:03.6]} 38. Qxa4 {[%clk 0:00:13.5]} 1-0

[Event "*** Titled Tuesday Blitz"]
[Site "Chess.com"]
[Date "2018.09.04"]
[Round "7"]
[White "wannabe2700"]
[Black "michaelk123"]
[Result "1-0"]
[WhiteElo "2588"]
[BlackElo "2488"]
[TimeControl "180+2"]
[EndTime "15:09:35 PDT"]
[Termination "wannabe2700 won by resignation"]

1. d4 {[%clk 0:03:01.9]} 1... Nf6 {[%clk 0:02:44.8]} 2. c4 {[%clk 0:03:02.3]}
2... e6 {[%clk 0:02:45]} 3. Nf3 {[%clk 0:03:03.5]} 3... b6 {[%clk 0:02:45.9]} 4.
g3 {[%clk 0:03:04.8]} 4... c6 {[%clk 0:02:46.9]} 5. Bg2 {[%clk 0:03:05.9]} 5...
d5 {[%clk 0:02:48.5]} 6. O-O {[%clk 0:03:06.9]} 6... Be7 {[%clk 0:02:50.1]} 7.
Nbd2 {[%clk 0:03:07.6]} 7... O-O {[%clk 0:02:50.2]} 8. Qc2 {[%clk 0:03:08.6]}
8... Bb7 {[%clk 0:02:46.8]} 9. e4 {[%clk 0:03:09.2]} 9... Na6 {[%clk 0:02:47.7]}
10. e5 {[%clk 0:03:05.3]} 10... Nd7 {[%clk 0:02:48.1]} 11. b3 {[%clk 0:03:04.1]}
11... Rc8 {[%clk 0:02:47.3]} 12. Bb2 {[%clk 0:03:03.5]} 12... c5 {[%clk
0:02:48.3]} 13. cxd5 {[%clk 0:02:58.1]} 13... Bxd5 {[%clk 0:02:48.6]} 14. Ne4
{[%clk 0:02:15.2]} 14... cxd4 {[%clk 0:02:41.3]} 15. Qe2 {[%clk 0:02:16.1]}
15... d3 {[%clk 0:02:30.2]} 16. Qxd3 {[%clk 0:02:15.4]} 16... Nb4 {[%clk
0:02:30.9]} 17. Qb1 {[%clk 0:01:54.7]} 17... Nc2 {[%clk 0:02:31.4]} 18. Nc3
{[%clk 0:01:56.1]} 18... Bxf3 {[%clk 0:02:03.6]} 19. Qxc2 {[%clk 0:01:55.9]}
19... Bxg2 {[%clk 0:02:03.6]} 20. Kxg2 {[%clk 0:01:57.8]} 20... Nxe5 {[%clk
0:02:04.1]} 21. Rfd1 {[%clk 0:01:55.6]} 21... Qc7 {[%clk 0:02:04.5]} 22. Qe4
{[%clk 0:01:55.1]} 22... f5 {[%clk 0:01:55.3]} 23. Qe2 {[%clk 0:01:55.4]} 23...
Bf6 {[%clk 0:01:46.9]} 24. Rac1 {[%clk 0:01:49.5]} 24... Qb7+ {[%clk 0:01:44]}
25. f3 {[%clk 0:01:49.4]} 25... Rfd8 {[%clk 0:01:40.4]} 26. Rxd8+ {[%clk
0:01:41.7]} 26... Rxd8 {[%clk 0:01:41.5]} 27. Nb5 {[%clk 0:01:26]} 27... Nxf3
{[%clk 0:01:23]} 28. Qxe6+ {[%clk 0:01:22]} 28... Kh8 {[%clk 0:01:24.1]} 29. Qc6
{[%clk 0:01:07.1]} 29... Ne1+ {[%clk 0:00:29.3]} 30. Kf1 {[%clk 0:01:00.1]}
30... Qxc6 {[%clk 0:00:28.3]} 31. Rxc6 {[%clk 0:01:02]} 31... Bxb2 {[%clk
0:00:25.1]} 32. Kxe1 {[%clk 0:01:02.7]} 32... a6 {[%clk 0:00:25.5]} 33. Nc7
{[%clk 0:00:59.3]} 33... Rc8 {[%clk 0:00:24.4]} 34. Rxb6 {[%clk 0:01:00]} 34...
Bd4 {[%clk 0:00:21.9]} 35. Rxa6 {[%clk 0:00:59.4]} 35... h5 {[%clk 0:00:15.4]}
36. Ne6 {[%clk 0:00:58.4]} 36... Re8 {[%clk 0:00:13.2]} 37. a4 {[%clk
0:00:53.7]} 37... Bg1 {[%clk 0:00:13.4]} 38. Kf1 {[%clk 0:00:54.2]} 38... Be3
{[%clk 0:00:11.8]} 39. b4 {[%clk 0:00:53]} 39... Kg8 {[%clk 0:00:11]} 40. b5
{[%clk 0:00:51.3]} 40... Kf7 {[%clk 0:00:12.1]} 41. Nc7 {[%clk 0:00:50.6]} 41...
Rc8 {[%clk 0:00:10.8]} 42. Rc6 {[%clk 0:00:47.6]} 42... g5 {[%clk 0:00:07.6]}
43. Nd5 {[%clk 0:00:43.8]} 43... Rxc6 {[%clk 0:00:04.7]} 44. bxc6 {[%clk
0:00:45.7]} 44... Bf4 {[%clk 0:00:03.4]} 45. gxf4 {[%clk 0:00:45.9]} 1-0

[Event "*** Titled Tuesday Blitz"]
[Site "Chess.com"]
[Date "2018.09.04"]
[Round "7"]
[White "Bauxi435"]
[Black "enriquetejedor"]
[Result "1-0"]
[WhiteElo "2359"]
[BlackElo "2341"]
[TimeControl "180+2"]
[EndTime "15:09:40 PDT"]
[Termination "Bauxi435 won by checkmate"]

1. d4 {[%clk 0:03:01.9]} 1... Nf6 {[%clk 0:02:32]} 2. c4 {[%clk 0:03:01.1]} 2...
e6 {[%clk 0:02:19.4]} 3. Nc3 {[%clk 0:02:59.7]} 3... Bb4 {[%clk 0:02:20.8]} 4.
f3 {[%clk 0:02:52.9]} 4... d5 {[%clk 0:02:07.7]} 5. a3 {[%clk 0:02:49.1]} 5...
Bxc3+ {[%clk 0:02:03]} 6. bxc3 {[%clk 0:02:49.4]} 6... O-O {[%clk 0:02:04.9]} 7.
e3 {[%clk 0:02:43.3]} 7... c5 {[%clk 0:02:02.8]} 8. cxd5 {[%clk 0:02:37.2]} 8...
exd5 {[%clk 0:02:03.5]} 9. Bd3 {[%clk 0:02:34.6]} 9... b6 {[%clk 0:02:04.3]} 10.
Ne2 {[%clk 0:02:32.4]} 10... Ba6 {[%clk 0:02:03.8]} 11. O-O {[%clk 0:02:30.3]}
11... Bxd3 {[%clk 0:02:01.6]} 12. Qxd3 {[%clk 0:02:29.9]} 12... Nc6 {[%clk
0:02:02.9]} 13. e4 {[%clk 0:02:22.5]} 13... cxd4 {[%clk 0:01:43.1]} 14. cxd4
{[%clk 0:02:21.8]} 14... dxe4 {[%clk 0:01:41.3]} 15. fxe4 {[%clk 0:02:22.6]}
15... Re8 {[%clk 0:01:43]} 16. Bg5 {[%clk 0:02:15.9]} 16... Ne5 {[%clk
0:01:38.3]} 17. Qd1 {[%clk 0:02:10.5]} 17... Neg4 {[%clk 0:01:31.1]} 18. e5
{[%clk 0:02:09.1]} 18... Qd5 {[%clk 0:01:25.2]} 19. Nc3 {[%clk 0:01:57.5]} 19...
Qa5 {[%clk 0:01:20.4]} 20. Bxf6 {[%clk 0:01:45]} 20... Nxf6 {[%clk 0:01:09.8]}
21. Qb3 {[%clk 0:01:39.4]} 21... Rac8 {[%clk 0:01:05.8]} 22. Nb5 {[%clk
0:01:35.8]} 22... Qd2 {[%clk 0:00:52.5]} 23. exf6 {[%clk 0:01:33.8]} 23... Re3
{[%clk 0:00:20.5]} 24. Qd5 {[%clk 0:01:29.7]} 24... Re6 {[%clk 0:00:05.8]} 25.
fxg7 {[%clk 0:01:26.1]} 25... Qe3+ {[%clk 0:00:05.6]} 26. Kh1 {[%clk 0:01:24.8]}
26... Kxg7 {[%clk 0:00:04.5]} 27. Nd6 {[%clk 0:01:22.1]} 27... Rxd6 {[%clk
0:00:03.9]} 28. Qxd6 {[%clk 0:01:22.3]} 28... Re8 {[%clk 0:00:03.1]} 29. Qg3+
{[%clk 0:01:22.6]} 29... Qxg3 {[%clk 0:00:03.5]} 30. hxg3 {[%clk 0:01:24.5]}
30... Rd8 {[%clk 0:00:05.1]} 31. Rf4 {[%clk 0:01:25.4]} 31... Kg6 {[%clk
0:00:05.6]} 32. Raf1 {[%clk 0:01:26.3]} 32... f5 {[%clk 0:00:05.6]} 33. Re1
{[%clk 0:01:26.2]} 33... Rd6 {[%clk 0:00:06.5]} 34. Re5 {[%clk 0:01:27.6]} 34...
a6 {[%clk 0:00:05.3]} 35. Rexf5 {[%clk 0:01:27.4]} 35... b5 {[%clk 0:00:06]} 36.
g4 {[%clk 0:01:27.9]} 36... Rb6 {[%clk 0:00:06.1]} 37. g5 {[%clk 0:01:29]} 37...
Kh5 {[%clk 0:00:05.4]} 38. g3 {[%clk 0:01:26]} 38... Rb7 {[%clk 0:00:03.2]} 39.
Kg2 {[%clk 0:01:22.5]} 39... a5 {[%clk 0:00:04.1]} 40. Kh3 {[%clk 0:01:22.6]}
40... b4 {[%clk 0:00:04.9]} 41. axb4 {[%clk 0:01:23.3]} 41... axb4 {[%clk
0:00:06.7]} 42. g4+ {[%clk 0:01:24.7]} 42... Kg6 {[%clk 0:00:07.7]} 43. Kh4
{[%clk 0:01:26.2]} 43... b3 {[%clk 0:00:08.2]} 44. Rf6+ {[%clk 0:01:27.1]} 44...
Kg7 {[%clk 0:00:09.5]} 45. Rf1 {[%clk 0:01:26.9]} 45... Rd7 {[%clk 0:00:07.5]}
46. R6f4 {[%clk 0:01:26.9]} 46... b2 {[%clk 0:00:06.9]} 47. Rb1 {[%clk
0:01:28.4]} 47... Rb7 {[%clk 0:00:08.1]} 48. Rf2 {[%clk 0:01:29.5]} 48... Rb4
{[%clk 0:00:09.1]} 49. Rbxb2 {[%clk 0:01:30.7]} 49... Rxd4 {[%clk 0:00:10.7]}
50. Rb7+ {[%clk 0:01:31.7]} 50... Kg8 {[%clk 0:00:12]} 51. Rc2 {[%clk
0:01:31.7]} 51... Rd8 {[%clk 0:00:10.8]} 52. Rbc7 {[%clk 0:01:32.8]} 52... Rd1
{[%clk 0:00:08.7]} 53. Rb2 {[%clk 0:01:29.8]} 53... Rd8 {[%clk 0:00:07.4]} 54.
Rbb7 {[%clk 0:01:30.3]} 54... Re8 {[%clk 0:00:02.8]} 55. Rg7+ {[%clk 0:01:30.8]}
55... Kh8 {[%clk 0:00:03.2]} 56. Rxh7+ {[%clk 0:01:32]} 56... Kg8 {[%clk
0:00:04.9]} 57. g6 {[%clk 0:01:32.3]} 57... Kf8 {[%clk 0:00:06.3]} 58. Rh8#
{[%clk 0:01:32.2]} 1-0

[Event "*** Titled Tuesday Blitz"]
[Site "Chess.com"]
[Date "2018.09.04"]
[Round "7"]
[White "sergiochess83"]
[Black "GMKrikor"]
[Result "1/2-1/2"]
[WhiteElo "2749"]
[BlackElo "2756"]
[TimeControl "180+2"]
[EndTime "15:09:44 PDT"]
[Termination "Game drawn by repetition"]

1. e4 {[%clk 0:03:01.9]} 1... c5 {[%clk 0:03:00.8]} 2. Nf3 {[%clk 0:03:02.5]}
2... g6 {[%clk 0:03:02.1]} 3. c3 {[%clk 0:02:59.9]} 3... d5 {[%clk 0:03:01.7]}
4. e5 {[%clk 0:02:59.7]} 4... Nc6 {[%clk 0:02:57.2]} 5. d4 {[%clk 0:03:00]} 5...
Bg4 {[%clk 0:02:55.1]} 6. Nbd2 {[%clk 0:02:54.2]} 6... cxd4 {[%clk 0:02:31.3]}
7. cxd4 {[%clk 0:02:52.9]} 7... Nh6 {[%clk 0:02:28.4]} 8. Bb5 {[%clk 0:02:48.4]}
8... Qb6 {[%clk 0:02:27.3]} 9. Bxc6+ {[%clk 0:02:40.4]} 9... bxc6 {[%clk
0:02:17.5]} 10. O-O {[%clk 0:02:38.3]} 10... e6 {[%clk 0:02:11.4]} 11. h3 {[%clk
0:02:36.1]} 11... Bxf3 {[%clk 0:02:12.3]} 12. Nxf3 {[%clk 0:02:37.9]} 12... Nf5
{[%clk 0:02:13.4]} 13. Bg5 {[%clk 0:02:31.9]} 13... Be7 {[%clk 0:01:57.7]} 14.
Bxe7 {[%clk 0:02:32.3]} 14... Nxe7 {[%clk 0:01:55.3]} 15. Qc2 {[%clk 0:02:13.2]}
15... O-O {[%clk 0:01:44.3]} 16. Rac1 {[%clk 0:02:11.9]} 16... a5 {[%clk
0:01:44]} 17. Qd2 {[%clk 0:02:09.8]} 17... Kg7 {[%clk 0:01:44.2]} 18. Rc2 {[%clk
0:01:58.3]} 18... h6 {[%clk 0:01:43.8]} 19. Rfc1 {[%clk 0:01:56.6]} 19... a4
{[%clk 0:01:45.2]} 20. Qf4 {[%clk 0:01:50.3]} 20... Ng8 {[%clk 0:01:43.5]} 21.
h4 {[%clk 0:01:43.9]} 21... Rfc8 {[%clk 0:01:37.2]} 22. Nh2 {[%clk 0:01:22.9]}
22... Rab8 {[%clk 0:01:28.8]} 23. Ng4 {[%clk 0:01:23.3]} 23... Qd8 {[%clk
0:01:30.3]} 24. g3 {[%clk 0:01:17.4]} 24... Rb4 {[%clk 0:01:13.4]} 25. a3 {[%clk
0:01:03.9]} 25... Rb3 {[%clk 0:01:11.7]} 26. Kg2 {[%clk 0:00:59.3]} 26... h5
{[%clk 0:01:06.1]} 27. Ne3 {[%clk 0:00:47]} 27... Nh6 {[%clk 0:01:07.4]} 28.
Rxc6 {[%clk 0:00:39.2]} 28... Rxc6 {[%clk 0:01:08.3]} 29. Rxc6 {[%clk
0:00:41.1]} 29... Rxb2 {[%clk 0:01:09.5]} 30. Ra6 {[%clk 0:00:42.1]} 30... Kh7
{[%clk 0:00:32.3]} 31. Rxa4 {[%clk 0:00:39.8]} 31... Qb8 {[%clk 0:00:31.6]} 32.
g4 {[%clk 0:00:12.4]} 32... hxg4 {[%clk 0:00:27.5]} 33. Nxg4 {[%clk 0:00:13.2]}
33... Nf5 {[%clk 0:00:20.7]} 34. h5 {[%clk 0:00:07.9]} 34... Qb3 {[%clk
0:00:13.3]} 35. hxg6+ {[%clk 0:00:07.9]} 35... Kxg6 {[%clk 0:00:12.1]} 36. Ra8
{[%clk 0:00:08.1]} 36... Nh4+ {[%clk 0:00:12.7]} 37. Kh2 {[%clk 0:00:09.3]}
37... Nf3+ {[%clk 0:00:12.1]} 38. Kg2 {[%clk 0:00:10.5]} 38... Nh4+ {[%clk
0:00:10.5]} 39. Kh2 {[%clk 0:00:11.7]} 39... Nf3+ {[%clk 0:00:07.8]} 40. Kg2
{[%clk 0:00:12.8]} 40... Nh4+ {[%clk 0:00:09.3]} 41. Kh2 {[%clk 0:00:12.1]}
1/2-1/2

[Event "*** Titled Tuesday Blitz"]
[Site "Chess.com"]
[Date "2018.09.04"]
[Round "7"]
[White "ulises2013"]
[Black "JonahWillow"]
[Result "1-0"]
[WhiteElo "2607"]
[BlackElo "2712"]
[TimeControl "180+2"]
[EndTime "15:09:49 PDT"]
[Termination "ulises2013 won by resignation"]

1. e4 {[%clk 0:03:01.8]} 1... c5 {[%clk 0:03:00.9]} 2. g3 {[%clk 0:03:01.7]}
2... Nc6 {[%clk 0:02:58.4]} 3. Bg2 {[%clk 0:03:02.4]} 3... g6 {[%clk 0:02:59.6]}
4. Ne2 {[%clk 0:03:02.3]} 4... Bg7 {[%clk 0:02:53.2]} 5. O-O {[%clk 0:03:03.3]}
5... e6 {[%clk 0:02:53.9]} 6. c3 {[%clk 0:03:04.2]} 6... e5 {[%clk 0:02:51.3]}
7. d3 {[%clk 0:02:58.9]} 7... Nge7 {[%clk 0:02:50.2]} 8. Be3 {[%clk 0:02:56.9]}
8... d6 {[%clk 0:02:51]} 9. d4 {[%clk 0:02:58.1]} 9... cxd4 {[%clk 0:02:48.3]}
10. cxd4 {[%clk 0:03:00]} 10... O-O {[%clk 0:02:49.1]} 11. Nbc3 {[%clk
0:03:00.6]} 11... b6 {[%clk 0:02:35.6]} 12. d5 {[%clk 0:02:47.8]} 12... Na5
{[%clk 0:02:32]} 13. Qd3 {[%clk 0:02:46.5]} 13... Nb7 {[%clk 0:02:26.8]} 14. b4
{[%clk 0:02:45.3]} 14... f5 {[%clk 0:02:24.3]} 15. Rac1 {[%clk 0:02:16.3]} 15...
Bd7 {[%clk 0:02:15.9]} 16. f4 {[%clk 0:02:11.7]} 16... Kh8 {[%clk 0:01:50.2]}
17. Kh1 {[%clk 0:01:57.6]} 17... Qe8 {[%clk 0:01:34]} 18. fxe5 {[%clk
0:01:42.2]} 18... Bxe5 {[%clk 0:01:25.8]} 19. Nd4 {[%clk 0:01:40.8]} 19... Ng8
{[%clk 0:01:24.7]} 20. exf5 {[%clk 0:01:36.4]} 20... Bxf5 {[%clk 0:01:24.1]} 21.
Nxf5 {[%clk 0:01:35]} 21... gxf5 {[%clk 0:01:25]} 22. Bd4 {[%clk 0:01:24.7]}
22... Qg6 {[%clk 0:01:05.4]} 23. Rce1 {[%clk 0:01:22.6]} 23... Rae8 {[%clk
0:01:03.4]} 24. Nb5 {[%clk 0:01:20.5]} 24... Qg7 {[%clk 0:00:34.3]} 25. Rxf5
{[%clk 0:00:36.1]} 25... Rxf5 {[%clk 0:00:17.6]} 26. Qxf5 {[%clk 0:00:35.4]}
26... Rf8 {[%clk 0:00:10.3]} 27. Bxe5 {[%clk 0:00:31.2]} 27... Rxf5 {[%clk
0:00:11.4]} 28. Bxg7+ {[%clk 0:00:32.7]} 28... Kxg7 {[%clk 0:00:13.3]} 29. Rc1
{[%clk 0:00:31.9]} 29... Rf7 {[%clk 0:00:13.9]} 30. Nxa7 {[%clk 0:00:31.5]}
30... Nf6 {[%clk 0:00:13.4]} 31. Nc8 {[%clk 0:00:28.3]} 31... Ng4 {[%clk
0:00:10.7]} 32. Nxb6 {[%clk 0:00:27.4]} 32... Nf2+ {[%clk 0:00:09.5]} 33. Kg1
{[%clk 0:00:28.4]} 33... Nd3 {[%clk 0:00:11.4]} 34. Rb1 {[%clk 0:00:27.8]} 34...
Nd8 {[%clk 0:00:07.7]} 35. a4 {[%clk 0:00:27.4]} 35... Ne5 {[%clk 0:00:04.6]}
36. a5 {[%clk 0:00:26.3]} 36... Rc7 {[%clk 0:00:04.3]} 37. a6 {[%clk 0:00:25.3]}
37... Ndf7 {[%clk 0:00:04.8]} 38. Ra1 {[%clk 0:00:24.4]} 38... Ra7 {[%clk
0:00:05.4]} 39. Nc8 {[%clk 0:00:23.5]} 39... Ra8 {[%clk 0:00:07]} 40. a7 {[%clk
0:00:24.3]} 40... Nc4 {[%clk 0:00:07.2]} 41. b5 {[%clk 0:00:21.3]} 41... Nd8
{[%clk 0:00:07.6]} 42. Bf1 {[%clk 0:00:19]} 42... Ne5 {[%clk 0:00:06.2]} 43. Nb6
{[%clk 0:00:19.1]} 1-0

[Event "*** Titled Tuesday Blitz"]
[Site "Chess.com"]
[Date "2018.09.04"]
[Round "7"]
[White "evgenysharapov"]
[Black "Zarikovs1999"]
[Result "1/2-1/2"]
[WhiteElo "2439"]
[BlackElo "2186"]
[TimeControl "180+2"]
[EndTime "15:10:01 PDT"]
[Termination "Game drawn by agreement"]

1. e4 {[%clk 0:03:01.9]} 1... c5 {[%clk 0:03:00.6]} 2. Nf3 {[%clk 0:03:02.2]}
2... d6 {[%clk 0:03:02]} 3. d4 {[%clk 0:03:02.6]} 3... cxd4 {[%clk 0:03:03.5]}
4. Nxd4 {[%clk 0:03:03.4]} 4... Nf6 {[%clk 0:03:04.9]} 5. Nc3 {[%clk 0:03:03.7]}
5... a6 {[%clk 0:03:06.3]} 6. g3 {[%clk 0:03:04.2]} 6... e5 {[%clk 0:03:07.2]}
7. Nb3 {[%clk 0:03:05]} 7... Be6 {[%clk 0:03:08.5]} 8. Bg2 {[%clk 0:03:05.1]}
8... Be7 {[%clk 0:03:09.7]} 9. a4 {[%clk 0:03:05.4]} 9... Nbd7 {[%clk
0:03:10.1]} 10. O-O {[%clk 0:03:05.4]} 10... O-O {[%clk 0:03:05.4]} 11. Re1
{[%clk 0:03:05.6]} 11... Nc5 {[%clk 0:03:04.2]} 12. Nxc5 {[%clk 0:02:56.5]}
12... dxc5 {[%clk 0:03:04.4]} 13. Nd5 {[%clk 0:02:56.5]} 13... Rc8 {[%clk
0:02:53.6]} 14. c4 {[%clk 0:02:48.9]} 14... Bxd5 {[%clk 0:02:53.1]} 15. exd5
{[%clk 0:02:45.7]} 15... Bd6 {[%clk 0:02:54.1]} 16. a5 {[%clk 0:02:43.8]} 16...
Re8 {[%clk 0:02:53]} 17. Bd2 {[%clk 0:02:43.9]} 17... Qd7 {[%clk 0:02:43.3]} 18.
Qa4 {[%clk 0:02:38.6]} 18... Qxa4 {[%clk 0:02:32.1]} 19. Rxa4 {[%clk 0:02:38.8]}
19... Kf8 {[%clk 0:02:31.3]} 20. b4 {[%clk 0:02:29.4]} 20... cxb4 {[%clk
0:02:30.6]} 21. Bxb4 {[%clk 0:02:28.4]} 21... Bxb4 {[%clk 0:02:19.2]} 22. Rxb4
{[%clk 0:02:28.8]} 22... Re7 {[%clk 0:02:06]} 23. d6 {[%clk 0:02:14.1]} 23...
Rd7 {[%clk 0:01:59]} 24. Rxe5 {[%clk 0:02:00.9]} 24... Rxd6 {[%clk 0:01:49.5]}
25. Bxb7 {[%clk 0:02:00.1]} 25... Rb8 {[%clk 0:01:40.1]} 26. c5 {[%clk
0:01:58.8]} 26... Rd1+ {[%clk 0:01:40.9]} 27. Kg2 {[%clk 0:01:59]} 27... Nd7
{[%clk 0:01:38.2]} 28. c6 {[%clk 0:01:36.7]} 28... Nxe5 {[%clk 0:01:20]} 29. c7
{[%clk 0:01:34]} 29... Nd7 {[%clk 0:01:08.4]} 30. Bf3 {[%clk 0:01:24]} 30... Rc8
{[%clk 0:00:57.7]} 31. Bxd1 {[%clk 0:01:20.6]} 31... Rxc7 {[%clk 0:00:58.9]} 32.
Be2 {[%clk 0:01:18.3]} 32... Ke7 {[%clk 0:00:54.6]} 33. Re4+ {[%clk 0:01:04.5]}
33... Kd6 {[%clk 0:00:35.7]} 34. Rh4 {[%clk 0:00:43.2]} 34... h6 {[%clk
0:00:31.2]} 35. Bxa6 {[%clk 0:00:39.1]} 35... Ra7 {[%clk 0:00:24.2]} 36. Bb5
{[%clk 0:00:38.1]} 36... Nc5 {[%clk 0:00:11.1]} 37. a6 {[%clk 0:00:34.6]} 37...
Ra8 {[%clk 0:00:09.1]} 38. Rd4+ {[%clk 0:00:33.5]} 38... Ke5 {[%clk 0:00:09.6]}
39. Rc4 {[%clk 0:00:26.1]} 39... Nxa6 {[%clk 0:00:09.2]} 40. Bxa6 {[%clk
0:00:19.7]} 40... Rxa6 {[%clk 0:00:09.8]} 41. Rc7 {[%clk 0:00:19.6]} 41... Ke6
{[%clk 0:00:10.7]} 42. h4 {[%clk 0:00:19.5]} 42... g6 {[%clk 0:00:11.9]} 43. Rb7
{[%clk 0:00:18.2]} 1/2-1/2

[Event "*** Titled Tuesday Blitz"]
[Site "Chess.com"]
[Date "2018.09.04"]
[Round "7"]
[White "Msb2"]
[Black "Gareth-Bale11"]
[Result "1-0"]
[WhiteElo "2840"]
[BlackElo "2619"]
[TimeControl "180+2"]
[EndTime "15:10:04 PDT"]
[Termination "Msb2 won by resignation"]

1. d4 {[%clk 0:03:01.9]} 1... d5 {[%clk 0:02:59.3]} 2. c4 {[%clk 0:03:02.6]}
2... e6 {[%clk 0:02:56.2]} 3. Nf3 {[%clk 0:03:03.4]} 3... Nf6 {[%clk 0:02:56.3]}
4. g3 {[%clk 0:03:04.5]} 4... Bb4+ {[%clk 0:02:56.3]} 5. Bd2 {[%clk 0:03:04.1]}
5... Bd6 {[%clk 0:02:53.8]} 6. Bg2 {[%clk 0:03:05.3]} 6... O-O {[%clk
0:02:54.1]} 7. O-O {[%clk 0:03:05.9]} 7... Nbd7 {[%clk 0:02:54.8]} 8. Qb3 {[%clk
0:03:05.4]} 8... c6 {[%clk 0:02:53.8]} 9. Nc3 {[%clk 0:03:06.6]} 9... a5 {[%clk
0:02:39.7]} 10. a3 {[%clk 0:02:57.6]} 10... h6 {[%clk 0:02:27.3]} 11. Rad1
{[%clk 0:02:56.8]} 11... Qe7 {[%clk 0:02:20.6]} 12. Rfe1 {[%clk 0:02:56.9]}
12... Ne4 {[%clk 0:02:19.8]} 13. Qc2 {[%clk 0:02:42.6]} 13... f5 {[%clk
0:02:18.9]} 14. c5 {[%clk 0:02:26]} 14... Bc7 {[%clk 0:02:17]} 15. Bf4 {[%clk
0:02:27.5]} 15... Bxf4 {[%clk 0:02:10.2]} 16. gxf4 {[%clk 0:02:29.4]} 16... g5
{[%clk 0:02:12]} 17. Ne5 {[%clk 0:02:09.4]} 17... gxf4 {[%clk 0:01:41.6]} 18.
Ng6 {[%clk 0:02:10.4]} 18... Qg5 {[%clk 0:01:29.6]} 19. Nxf8 {[%clk 0:02:10.3]}
19... Nxf8 {[%clk 0:01:31.1]} 20. f3 {[%clk 0:02:11]} 20... Nf6 {[%clk
0:01:30.2]} 21. Qd2 {[%clk 0:01:19.3]} 21... Ng6 {[%clk 0:01:28.4]} 22. e3
{[%clk 0:01:20.7]} 22... Kh7 {[%clk 0:01:07.7]} 23. Qf2 {[%clk 0:01:04.2]} 23...
fxe3 {[%clk 0:00:56.3]} 24. Rxe3 {[%clk 0:00:59.9]} 24... f4 {[%clk 0:00:57.2]}
25. Re2 {[%clk 0:00:56.3]} 25... Nh5 {[%clk 0:00:53.5]} 26. Rde1 {[%clk
0:00:52]} 26... Bd7 {[%clk 0:00:53]} 27. Kh1 {[%clk 0:00:44.8]} 27... Rg8 {[%clk
0:00:50.7]} 28. Bh3 {[%clk 0:00:45.8]} 28... Ng3+ {[%clk 0:00:41.7]} 29. hxg3
{[%clk 0:00:43.2]} 29... fxg3 {[%clk 0:00:42.7]} 30. Qf1 {[%clk 0:00:14.3]}
30... Nf4 {[%clk 0:00:41.1]} 31. Kg1 {[%clk 0:00:15.7]} 31... Qh4 {[%clk
0:00:34.5]} 32. Bg4 {[%clk 0:00:16.9]} 32... h5 {[%clk 0:00:27.3]} 33. Nd1
{[%clk 0:00:10.2]} 33... hxg4 {[%clk 0:00:26.6]} 34. fxg4 {[%clk 0:00:12.1]}
34... Rxg4 {[%clk 0:00:17.6]} 35. Ne3 {[%clk 0:00:13]} 35... Nh3+ {[%clk
0:00:15.8]} 36. Kg2 {[%clk 0:00:13.9]} 36... Nf2 {[%clk 0:00:16.3]} 37. Nxg4
{[%clk 0:00:07.1]} 37... Qh3+ {[%clk 0:00:16.8]} 38. Kf3 {[%clk 0:00:08.6]}
38... Qxg4+ {[%clk 0:00:17.9]} 39. Ke3 {[%clk 0:00:10.1]} 39... Qe4+ {[%clk
0:00:18.8]} 40. Kd2 {[%clk 0:00:11.6]} 40... Qxd4+ {[%clk 0:00:20]} 41. Kc2
{[%clk 0:00:12.3]} 41... e5 {[%clk 0:00:20.2]} 42. Rxe5 {[%clk 0:00:12.7]} 42...
Qxc5+ {[%clk 0:00:21.4]} 43. Kb1 {[%clk 0:00:13.7]} 43... Bg4 {[%clk 0:00:22.2]}
44. Qg2 {[%clk 0:00:12.6]} 44... Qd6 {[%clk 0:00:09.9]} 45. Qxg3 {[%clk
0:00:11.7]} 45... Bf5+ {[%clk 0:00:11.4]} 46. Ka1 {[%clk 0:00:13.3]} 1-0